[Event "5th Sharjah Masters 2022"]
[Site "Sharjah"]
[Date "2022.05.22"]
[Round "2.12"]
[White "Indjic, Aleksandar"]
[Black "Yuffa, Daniil"]
[Result "1-0"]
[ECO "E62"]
[WhiteElo "2621"]
[BlackElo "2597"]
[Annotator "TA"]
[PlyCount "63"]
[EventDate "2022.05.21"]
[EventType "swiss"]
[EventCountry "UAE"]
[SourceTitle "playchess.com"]
[Source "ChessBase"]
[SourceQuality "1"]
[TimeControl "5400+30"]

{[%evp 14,63,32,25,23,27,29,27,25,20,13,19,17,29,53,54,72,38,54,54,50,48,64,62,63,45,69,70,84,81,83,77,80,79,60,66,71,34,198,202,199,199,492,485,485,482,474,447,722,707,3004,2646]} 1. d4 {[%emt 0:00:45]} Nf6 {[%emt 0:00:10]} 2. c4 {[%emt 0:00:17]} g6 {[%emt 0:00:08]} 3. g3 {[%emt 0:00:47]} Bg7 {[%emt 0:00:28]} 4. Bg2 {[%emt 0:00:10]} O-O {[%emt 0:00:08]} 5. Nc3 {[%emt 0:00:09]} d6 {[%emt 0:00:32]} 6. Nf3 {[%emt 0:00:08]} Nc6 {[%emt 0:00:08]} 7. d5 {[%emt 0:00:52]} Na5 {[%emt 0:00:51]} 8. b3 $1 {[%emt 0:00:10][%cal Bb2b3,Bb3c4,Bc4d5][%mdl 4] now scores much better than the old 8.Nd2.} c5 {[%emt 0:02:53][%cal Of6d5] E62: King's Indian: Fianchetto: 6...c6 and Panno Variation (6...Nc6) without ...a6.} 9. Bb2 {[%emt 0:00:37]} a6 {[%emt 0:00:21][%cal Ob7b5]} 10. Nd2 {[%emt 0:00:31]} Rb8 {[%emt 0:02:41] White has an edge.} 11. O-O {[%emt 0:00:48]} b5 {[%emt 0:00:30]} 12. Qc1 $5 {[%emt 0:00:09][%mdl 4] [#] Exploring less charted territory.} bxc4 $146 {[%emt 0:04:17]} ({Predecessor:} 12... e5 13. dxe6 fxe6 14. Rb1 bxc4 15. bxc4 Bb7 16. Bxb7 Rxb7 17. Ba1 Rxb1 18. Qxb1 d5 {1-0 (35) Bogner,S (2574)-Djukic,N (2519) Terme Catez 2021}) 13. bxc4 {[%emt 0:00:11]} e6 {[%emt 0:04:41]} 14. Rb1 {[%emt 0:04:48]} Re8 {[%emt 0:05:08]} 15. Ba1 {[%emt 0:11:49]} Rxb1 {[%emt 0:04:42]} 16. Qxb1 {[%emt 0:03:55]} exd5 {[%emt 0:03:05]} 17. cxd5 {[%emt 0:00:44]} Bf5 {[%emt 0:03:31]} 18. e4 {[%emt 0:01:40]} Bd7 {[%emt 0:00:30]} 19. h3 {[%emt 0:00:30]} Qc7 {[%emt 0:00:30]} 20. f4 {[%emt 0:00:30]} Nh5 {[%emt 0:00:30]} 21. Kh2 {[%emt 0:00:30]} ({Inferior is} 21. Ne2 Bxa1 22. Qxa1 Bb5 $15) 21... f5 {[%emt 0:00:30]} 22. Re1 {[%emt 0:00:30]} Qd8 {[%emt 0:00:30]} 23. Nd1 {[%emt 0:00:30]} Bxa1 {[%emt 0:00:30]} 24. Qxa1 {[%emt 0:00:30]} g5 $1 {[%emt 0:00:30]} 25. Bf3 {[%emt 0:00:30]} g4 $2 {[%emt 0:00:30] [#] Loses the game.} ({Black should play} 25... gxf4 $14 26. Bxh5 fxg3+ 27. Kg1 Qg5) 26. Bg2 $18 {[%emt 0:00:30]} gxh3 {[%emt 0:00:30]} 27. Bf3 {[%emt 0:34:08]} Qf6 $2 {[%emt 0:47:38]} (27... Nf6) 28. e5 {[%emt 0:03:06] White is clearly winning.} Qg6 {[%emt 0:00:56]} 29. Bxh5 {[%emt 0:00:23]} Qxh5 {[%emt 0:00:05]} 30. e6 {[%emt 0:00:17]} Ba4 {[%emt 0:04:19]} (30... Bxe6 $142 31. dxe6 Nc6) 31. Ne3 {[%emt 0:00:36][%cal Og3g4] [#] Hoping for g4!} Rb8 {[%emt 0:00:48]} 32. g4 {[%emt 0:01:09] Weighted Error Value: White=0.02 (flawless) /Black=0.35} 1-0

[Event "5th Sharjah Masters 2022"]
[Site "Sharjah"]
[Date "2022.05.22"]
[Round "2.13"]
[White "Al Hosani, Omran"]
[Black "Sadhwani, Raunak"]
[Result "0-1"]
[ECO "E24"]
[WhiteElo "2191"]
[BlackElo "2619"]
[Annotator "TA"]
[PlyCount "56"]
[EventDate "2022.05.21"]
[EventType "swiss"]
[EventCountry "UAE"]
[SourceTitle "playchess.com"]
[Source "ChessBase"]
[SourceQuality "1"]
[TimeControl "5400+30"]

{[%evp 10,56,4,-8,-13,-18,-24,-35,-31,-24,-40,-28,-20,-27,-9,-30,-51,-46,-40,-36,-28,-34,-34,-81,-84,-80,-83,-71,-90,-118,-8,-218,-219,-223,-223,-359,-352,-353,-372,-1017,-835,-1275,-822,-1170,-813,-799,-784,-754,-728]} 1. d4 {[%emt 0:00:03]} Nf6 {[%emt 0:00:05]} 2. c4 {[%emt 0:00:12]} e6 {[%emt 0:00:04]} 3. Nc3 {[%emt 0:00:13]} Bb4 {[%emt 0:00:04]} 4. a3 {[%emt 0:00:16]} Bxc3+ {[%emt 0:00:03]} 5. bxc3 {[%emt 0:00:14]} b6 {[%emt 0:00:07]} 6. f3 {[%emt 0:02:47]} Nc6 {[%emt 0:00:05] E24: Nimzo-Indian: Sämisch: Unusual Black 5th moves and 5...c5 sidelines.} 7. e4 {[%emt 0:00:33]} Na5 {[%emt 0:00:03] The modern move.} 8. Bg5 {[%emt 0:11:27]} h6 {[%emt 0:03:29] Black is slightly better.} 9. Bh4 {[%emt 0:00:36]} d6 {[%emt 0:01:00]} 10. Bd3 {[%emt 0:00:57]} g5 {[%emt 0:04:27]} 11. Bf2 {[%emt 0:00:55]} Ba6 {[%emt 0:00:07]} 12. h4 {[%emt 0:01:57] Strongly threatening hxg5.} Rg8 {[%emt 0:03:41]} 13. hxg5 {[%emt 0:01:45]} hxg5 {[%emt 0:00:04] [#]} 14. Qe2 $146 {[%emt 0:03:05]} ({Predecessor:} 14. Ne2 Qd7 15. e5 dxe5 16. dxe5 O-O-O 17. Nd4 Ne8 18. c5 Bxd3 19. Qxd3 Qd5 20. Qa6+ {1-0 (29) Carlsen,M (2876)-Pichot,A (2590) chess24.com INT 2019}) 14... Nd7 {[%emt 0:00:58]} 15. Nh3 {[%emt 0:18:16]} Qe7 {[%emt 0:00:47]} 16. f4 {[%emt 0:08:21]} (16. Bg3 $15) 16... gxf4 $17 {[%emt 0:01:38]} 17. Nxf4 {[%emt 0:02:10]} O-O-O {[%emt 0:00:19][%cal Ba8d8,Bd8g8,Bg8g4,Bg4h4][%mdl 32]} 18. Bh4 {[%emt 0:02:55] Prevents Qg5.} f6 {[%emt 0:00:35]} 19. O-O {[%emt 0:01:31][%cal Oc4c5]} Qh7 {[%emt 0:06:22]} (19... Rdf8 $17 {And now ...Qh7 would win.} 20. Nh5 Rh8) 20. Nh5 $2 {[%emt 0:08:39] [#] White does not recover from this.} (20. Bxf6 $1 $11 {and White stays safe.} Nxf6 21. e5) 20... Rh8 $1 $19 {[%emt 0:01:52]} 21. g4 {[%emt 0:06:37]} Rdg8 {[%emt 0:00:20]} 22. Kh2 {[%emt 0:00:14] [#]} (22. Kf2 $142) 22... Bxc4 $1 {[%emt 0:01:45][%mdl 512]} 23. Bxc4 {[%emt 0:01:18]} (23. Rad1 Qg6) 23... Nxc4 {[%emt 0:00:18] Pair of Knights!} 24. Bxf6 {[%emt 0:02:28] [#]} (24. Qxc4 Rxg4 25. Qa6+ Kd8 26. Rxf6 Rxh4+ 27. Kg2 Qxe4+ 28. Rf3 R8xh5 29. Kf2 Rh2+ 30. Kg1 Qxf3) (24. Kh3 Qg6 25. Rg1) 24... Ne3 $1 {[%emt 0:02:04][%mdl 512] Black is clearly winning.} 25. Qxe3 {[%emt 0:02:54]} (25. Bxh8 Nxg4+) 25... Rxg4 {[%emt 0:00:06]} 26. Qh3 {[%emt 0:00:12] [#]} Qxh5 $1 {[%emt 0:00:07][%csl Gh8][%cal Rh5h3]} 27. Bxh8 {[%emt 0:00:29]} Rh4 {[%emt 0:00:05]} 28. Rf3 {[%emt 0:00:09]} Qxh8 {[%emt 0:00:09] Weighted Error Value: White=0.92/Black=0.71} 0-1

[Event "5th Sharjah Masters 2022"]
[Site "Sharjah"]
[Date "2022.05.22"]
[Round "2.14"]
[White "Erigaisi Arjun"]
[Black "Van Foreest, Lucas"]
[Result "1/2-1/2"]
[ECO "C45"]
[WhiteElo "2675"]
[BlackElo "2572"]
[Annotator "TA"]
[PlyCount "120"]
[EventDate "2022.05.21"]
[EventType "swiss"]
[EventCountry "UAE"]
[SourceTitle "playchess.com"]
[Source "ChessBase"]
[SourceQuality "1"]
[TimeControl "5400+30"]

{[%evp 14,120,-2,-20,0,-5,-8,-29,-24,-16,-11,-38,0,0,0,0,0,0,0,0,0,0,0,0,0,0,0,0,0,0,0,0,2,8,37,33,25,24,32,22,98,86,83,85,84,89,151,164,215,200,212,175,181,184,173,123,242,237,239,11,11,20,297,295,292,283,344,329,306,214,383,380,379,366,350,306,481,467,413,191,186,185,174,81,84,77,474,77,93,80,77,8,8,8,8,8,8,8,20,8,8,8,8,8,8,8,8,8,8]} 1. e4 {[%emt 0:00:05]} e5 {[%emt 0:00:06]} 2. Nf3 {[%emt 0:00:05]} Nc6 {[%emt 0:00:03]} 3. d4 {[%emt 0:00:05]} exd4 {[%emt 0:00:03]} 4. Nxd4 {[%emt 0:00:04]} Nf6 {[%emt 0:00:16][%cal Bg8f6,Bf6d5,Bd5b4,Bb4c2][%mdl 32]} 5. Nxc6 {[%emt 0:00:07]} bxc6 {[%emt 0:00:03]} 6. e5 {[%emt 0:00:05]} Qe7 {[%emt 0:00:01]} 7. Qe2 {[%emt 0:00:07]} Nd5 {[%emt 0:00:07]} 8. h4 {[%emt 0:00:05]} f6 {[%emt 0:00:39] C45: Scotch Game.} 9. c4 {[%emt 0:00:07]} Ba6 {[%emt 0:02:54]} 10. Rh3 {[%emt 0:00:19]} O-O-O {[%emt 0:01:16] Black has an edge.} 11. Ra3 {[%emt 0:01:54]} Nb4 {[%emt 0:00:10]} 12. Ra4 {[%emt 0:00:06] Strongly threatening a3.} Qxe5 {[%emt 0:13:33]} 13. Qxe5 {[%emt 0:00:20]} fxe5 {[%emt 0:00:12]} 14. Bg5 {[%emt 0:00:05]} Nc2+ {[%emt 0:10:29]} 15. Kd1 $1 {[%emt 0:00:14]} Nxa1 {[%emt 0:00:04]} 16. Bxd8 {[%emt 0:00:06]} Kxd8 {[%emt 0:00:12]} 17. Rxa6 {[%emt 0:00:06]} Bc5 {[%emt 0:00:15]} 18. f3 {[%emt 0:00:06] [#]} Rf8 $146 {[%emt 0:08:04]} ({Predecessor:} 18... Bd4 19. b3 g5 20. hxg5 Rg8 21. Nd2 Rxg5 22. Ne4 Rh5 23. c5 Rh1 24. Ng3 Rg1 25. Rxa7 Bxc5 {1-0 (113) Kupervaser,E (2246)-Aharonovich,I (2288) Petah Tikva 2019}) 19. Ra5 {[%emt 0:02:00]} Bd4 {[%emt 0:03:52]} 20. Nd2 {[%emt 0:00:07]} Bxb2 {[%emt 0:01:08]} 21. Rxa7 {[%emt 0:00:06]} Ke7 {[%emt 0:07:36]} 22. Rxc7 {[%emt 0:14:38]} Bd4 {[%emt 0:00:23]} 23. Bd3 {[%emt 0:13:11]} g6 {[%emt 0:00:20] aiming for ...Rb8.} (23... Kd8 $5 {[%cal Rd8c7]} 24. Rb7 Kc8 $11) 24. Rb7 {[%emt 0:04:42] Inhibits Rb8.} Ra8 {[%emt 0:00:16]} 25. Bb1 {[%emt 0:04:49]} Ra4 {[%emt 0:20:11]} 26. Rb8 {[%emt 0:18:33]} h5 {[%emt 0:02:58]} (26... e4 $1 $11 {remains equal.}) 27. Bxg6 {[%emt 0:18:43] Black must now prevent c5.} d5 {[%emt 0:04:56]} 28. cxd5 {[%emt 0:01:15]} (28. Bxh5 $6 dxc4 29. Rb7+ Kd8 $11) 28... cxd5 {[%emt 0:00:02]} 29. Rb5 {[%emt 0:01:22]} Kf6 {[%emt 0:02:28] [#]} (29... Ra6 $142 30. Bxh5 Rxa2) 30. Bh7 $1 $16 {[%emt 0:04:43]} ({Of course not} 30. Bxh5 $6 Rxa2 31. Rxd5 Nc2 $11) 30... Rxa2 {[%emt 0:05:17]} (30... Ra7 {was worth a try.}) 31. Rxd5 $18 {[%emt 0:00:29]} Rb2 {[%emt 0:00:10]} 32. g4 {[%emt 0:03:41]} Ke6 {[%emt 0:03:54] Against Rd7} 33. Bg8+ {[%emt 0:03:13]} Ke7 {[%emt 0:00:01]} 34. Nc4 {[%emt 0:00:07]} Rh2 {[%emt 0:03:31] [#]} (34... Rb1+ $16 35. Ke2 hxg4) 35. g5 $1 {[%emt 0:04:10]} ({Don't play} 35. Nxe5 $6 Bxe5 36. Rxe5+ Kf8) ({Don't do} 35. gxh5 $6 Nc2 $16) 35... Nc2 {[%emt 0:02:12]} 36. Bh7 $2 {[%emt 0:00:35]} ({White has to play} 36. Rb5 $18) 36... Nb4 $11 {[%emt 0:00:49]} 37. Rb5 {[%emt 0:01:59]} Rh1+ $2 {[%emt 0:00:12][%mdl 8192]} (37... Na2 $1 $11 {and Black has nothing to worry.} 38. Rb7+ Kd8) 38. Ke2 $18 {[%emt 0:00:12]} Rh2+ {[%emt 0:00:05]} 39. Kf1 {[%emt 0:00:33]} Rf2+ {[%emt 0:00:53]} 40. Ke1 {[%emt 0:00:05]} Ra2 {[%emt 0:03:40]} 41. Nxe5 {[%emt 0:02:15]} Ra1+ $2 {[%emt 0:01:06]} (41... Kd6) 42. Ke2 {[%emt 0:00:34] And now Ng6+ would win.} Ra2+ {[%emt 0:00:02]} 43. Kf1 {[%emt 0:00:16] Threatens to win with Ng6+.} Rf2+ {[%emt 0:00:05]} 44. Ke1 {[%emt 0:00:05]} Rb2 {[%emt 0:00:32]} (44... Nc2+ $142 45. Bxc2 Rxc2 46. Ng6+ Kd6) 45. Kd1 {[%emt 0:00:53]} Bc3 {[%emt 0:01:09]} 46. Nc4 {[%emt 0:00:43] Against Rd2+} (46. Rb7+ $142 Ke6 47. Nc4) 46... Rh2 {[%emt 0:00:43]} 47. Rb7+ {[%emt 0:01:40]} Kf8 {[%emt 0:00:33]} 48. g6 {[%emt 0:02:38]} (48. Rd7 $18 {is more deadly.}) 48... Rh1+ $16 {[%emt 0:00:06]} 49. Ke2 {[%emt 0:00:05] Hoping for Rf7+.} Re1+ {[%emt 0:00:02]} 50. Kf2 {[%emt 0:00:06]} Re7 {[%emt 0:01:40] Against Rf7+} 51. Rxe7 {[%emt 0:01:29]} Kxe7 {[%emt 0:00:03][%mdl 4096] Endgame KBN-KBN} 52. f4 {[%emt 0:00:39]} (52. Ke3 $16) 52... Kf8 $11 {[%emt 0:01:11] The position is equal.} 53. Nd6 {[%emt 0:00:33]} Nd5 {[%emt 0:01:03]} 54. Kf3 {[%emt 0:00:54]} Bf6 {[%emt 0:00:34]} 55. Nf5 {[%emt 0:00:21]} Bb2 {[%emt 0:02:44]} 56. g7+ {[%emt 0:01:09]} Bxg7 {[%emt 0:00:02]} 57. Bg6 {[%emt 0:00:01]} Bc3 {[%emt 0:01:14]} 58. Ng3 {[%emt 0:00:45]} Be1 {[%emt 0:00:33]} 59. Bxh5 {[%emt 0:00:27]} Bxg3 {[%emt 0:00:04]} 60. Kxg3 {[%emt 0:00:05]} Nxf4 {[%emt 0:00:03] Black escapes into a draw.  Weighted Error Value: White=0.20 (precise) /Black=0.25 (precise)} 1/2-1/2

[Event "5th Sharjah Masters 2022"]
[Site "Sharjah"]
[Date "2022.05.22"]
[Round "2.15"]
[White "Moroni, Luca Jr"]
[Black "Fedoseev, Vladimir"]
[Result "1-0"]
[ECO "E46"]
[WhiteElo "2581"]
[BlackElo "2701"]
[Annotator "TA"]
[PlyCount "83"]
[EventDate "2022.05.21"]
[EventType "swiss"]
[EventCountry "UAE"]
[SourceTitle "playchess.com"]
[Source "ChessBase"]
[SourceQuality "1"]
[TimeControl "5400+30"]

{[%evp 9,83,-5,18,14,14,12,8,0,0,0,15,0,4,-3,11,15,19,0,0,0,10,12,27,14,25,0,16,0,0,0,0,0,0,0,0,0,0,0,0,0,0,0,0,0,0,0,0,0,7,0,0,0,0,0,0,0,0,0,0,0,0,0,0,0,0,0,0,0,0,0,0,0,0,-22,0,-12]} 1. d4 {[%emt 0:00:03]} Nf6 {[%emt 0:00:17]} 2. c4 {[%emt 0:00:04]} e6 {[%emt 0:00:39]} 3. Nc3 {[%emt 0:00:04]} Bb4 {[%emt 0:00:42]} 4. e3 {[%emt 0:00:04]} O-O {[%emt 0:02:19]} 5. Bd2 {[%emt 0:00:06]} d6 {[%emt 0:03:24]} 6. a3 {[%emt 0:02:28] E46: Nimzo-Indian: Rubinstein: 4 e3 0-0 5 Ne2 without early Bd3.} Bxc3 {[%emt 0:01:34]} 7. Bxc3 {[%emt 0:00:03]} Ne4 {[%emt 0:00:17]} 8. Qc2 {[%emt 0:03:34]} Nxc3 {[%emt 0:00:16]} 9. Qxc3 {[%emt 0:00:03]} Qe7 {[%emt 0:02:04]} 10. Nf3 {[%emt 0:03:11][%cal Bg1f3,Bf3d2,Bd2b3][%mdl 32]} Nd7 {[%emt 0:00:21]} 11. Be2 {[%emt 0:05:24]} e5 {[%emt 0:01:39]} 12. O-O {[%emt 0:00:52]} c5 {[%emt 0:05:08]} 13. dxe5 {[%emt 0:05:05]} dxe5 {[%emt 0:00:11]} 14. Rfd1 {[%emt 0:01:20]} e4 {[%emt 0:01:55] [#]} 15. Nd2 $146 {[%emt 0:01:21]} ({Predecessor:} 15. Ne1 a5 16. Rd2 Ra6 17. Rad1 a4 18. Qc2 Nf6 19. Qc3 h5 20. g3 Bh3 21. Ng2 {0-1 (58) Ondozi,M (2405)-Prusikin,M (2523) Switzerland 2019}) 15... Nf6 {[%emt 0:04:42]} 16. b4 {[%emt 0:05:16]} Bd7 {[%emt 0:06:06]} 17. Nb3 {[%emt 0:14:15]} Ba4 {[%emt 0:03:01] The position is equal.} 18. Rd2 {[%emt 0:01:00]} b6 {[%emt 0:00:30]} 19. bxc5 {[%emt 0:00:30]} bxc5 {[%emt 0:00:30]} 20. Rb1 {[%emt 0:00:30]} Rfb8 {[%emt 0:00:30]} 21. Rdb2 {[%emt 0:00:30]} Qc7 {[%emt 0:00:30]} 22. Nd2 {[%emt 0:00:30] Rxb8+ is the strong threat.} Rd8 {[%emt 0:00:30]} 23. h3 {[%emt 0:00:30]} h6 {[%emt 0:00:30]} 24. Nf1 {[%emt 0:00:30]} Bc6 {[%emt 0:00:30] Prevents Rb7.} 25. Ng3 {[%emt 0:00:30]} Re8 {[%emt 0:00:30]} 26. Nh5 {[%emt 0:00:30]} Nxh5 {[%emt 0:00:30]} 27. Bxh5 {[%emt 0:00:30]} Rad8 {[%emt 0:00:30]} 28. Rd1 {[%emt 0:00:30] Against Rd3} Rc8 {[%emt 0:00:30]} 29. Rdb1 {[%emt 0:00:30]} Re5 {[%emt 0:00:30]} 30. Be2 {[%emt 0:00:30]} Rf8 {[%emt 0:00:30]} 31. Rd1 {[%emt 0:00:30]} Re6 {[%emt 0:00:30]} 32. Rbd2 {[%emt 0:00:30]} Kh7 {[%emt 0:00:30]} 33. g3 {[%emt 0:00:30]} Ba4 {[%emt 0:00:30]} 34. Rb1 {[%emt 0:00:30]} Rb6 {[%emt 0:00:30]} 35. Rdb2 {[%emt 0:00:30]} Bd7 {[%emt 0:00:30]} 36. Bf1 {[%emt 0:00:30]} Rfb8 {[%emt 0:00:30]} 37. Bg2 {[%emt 0:00:30]} f5 {[%emt 0:00:30]} 38. Bf1 {[%emt 0:00:30]} Qd6 {[%emt 0:00:30]} 39. Rd2 {[%emt 0:00:30]} Qe7 {[%emt 0:00:30]} 40. Rdb2 {[%emt 0:00:30]} Ba4 {[%emt 0:00:30]} 41. h4 {[%emt 0:00:30]} Qd6 {[%emt 0:00:30]} 42. Be2 {[%emt 0:00:30][%mdl 32768] An even fight not without its subleties.  Weighted Error Value: White=0.04 (flawless) /Black=0.04 (flawless) . Loss on time!?} 1-0

[Event "5th Sharjah Masters 2022"]
[Site "Sharjah"]
[Date "2022.05.22"]
[Round "2.16"]
[White "Can, Emre"]
[Black "Narayanan.S.L"]
[Result "1/2-1/2"]
[ECO "E09"]
[WhiteElo "2599"]
[BlackElo "2662"]
[Annotator "TA"]
[PlyCount "62"]
[EventDate "2022.05.21"]
[EventType "swiss"]
[EventCountry "UAE"]
[SourceTitle "playchess.com"]
[Source "ChessBase"]
[SourceQuality "1"]
[TimeControl "5400+30"]

{[%evp 27,62,-5,-6,-3,-10,0,-3,-22,-23,-10,-12,-10,-18,-27,0,0,5,0,0,0,0,0,0,0,6,9,7,13,6,5,5,10,16,14,19,0,0]} 1. d4 {[%emt 0:00:07]} Nf6 {[%emt 0:00:08]} 2. c4 {[%emt 0:00:23]} e6 {[%emt 0:00:04]} 3. Nf3 {[%emt 0:00:25]} b6 {[%emt 0:00:05]} 4. g3 {[%emt 0:01:52]} Ba6 {[%emt 0:00:07]} 5. Nbd2 {[%emt 0:00:42]} d5 {[%emt 0:01:44]} 6. Bg2 {[%emt 0:00:41]} Be7 {[%emt 0:00:42]} 7. O-O {[%emt 0:01:35]} O-O {[%emt 0:00:20]} 8. b3 {[%emt 0:01:05]} Bb7 {[%emt 0:04:29]} 9. Bb2 {[%emt 0:01:26]} Nbd7 {[%emt 0:00:40]} 10. Qc2 {[%emt 0:06:35]} c5 {[%emt 0:12:53]} 11. Rac1 {[%emt 0:11:19]} Rc8 {[%emt 0:10:27]} 12. Qb1 {[%emt 0:01:18]} dxc4 {[%emt 0:03:30]} 13. Nxc4 {[%emt 0:00:47]} b5 {[%emt 0:03:04]} 14. Ncd2 {[%emt 0:06:05]} Qb6 {[%emt 0:14:42]} 15. dxc5 {[%emt 0:12:45] E09: Closed Catalan: Main Line: 7 Qc2 c6 8 Nbd2.} Bxc5 {[%emt 0:00:52]} 16. b4 {[%emt 0:00:34]} Be7 {[%emt 0:03:04] [#]} 17. a3 $146 {[%emt 0:06:26]} ({Predecessor:} 17. Bd4 Qa6 18. Qb2 Rfd8 19. a3 Nb6 20. Rxc8 Rxc8 21. Rc1 Nc4 22. Nxc4 bxc4 23. Ne1 Bxg2 24. Nxg2 {½-½ (58) Barcza,G-Gereben,E Budapest 1950}) 17... a5 {[%emt 0:01:17]} 18. Bc3 {[%emt 0:05:50]} Qa6 {[%emt 0:05:19]} 19. Qa1 {[%emt 0:07:17]} axb4 {[%emt 0:07:47]} 20. Bxb4 {[%emt 0:01:38]} Bxb4 {[%emt 0:02:13]} 21. axb4 {[%emt 0:00:08] The position is equal.} Nd5 {[%emt 0:02:05]} 22. Qxa6 {[%emt 0:16:02]} (22. Qd4 {feels hotter.} Rxc1 23. Rxc1 Qa3 24. Rb1) 22... Bxa6 {[%emt 0:00:05]} 23. Ra1 {[%emt 0:00:10]} Nb8 {[%emt 0:01:48]} 24. Rfb1 {[%emt 0:00:27]} Nc3 {[%emt 0:03:01][%csl LRb1,LRe2]} 25. Re1 {[%emt 0:00:10]} Bb7 {[%emt 0:03:58]} 26. Nb1 {[%emt 0:03:19]} Nxb1 {[%emt 0:04:26]} 27. Rexb1 {[%emt 0:00:19]} Be4 {[%emt 0:00:08]} 28. Rb2 {[%emt 0:01:14]} Nc6 {[%emt 0:00:23]} 29. Ne1 {[%emt 0:01:06]} Bxg2 {[%emt 0:00:17]} 30. Kxg2 {[%emt 0:00:12]} Ne5 {[%emt 0:00:24]} 31. Nf3 {[%emt 0:02:22]} Nxf3 {[%emt 0:02:21] An interesting draw.  Weighted Error Value: White=0.03 (flawless) /Black=0.02 (flawless)} 1/2-1/2

[Event "5th Sharjah Masters 2022"]
[Site "Sharjah"]
[Date "2022.05.22"]
[Round "2.17"]
[White "Abdusattorov, Nodirbek"]
[Black "Mchedlishvili, Mikheil"]
[Result "1/2-1/2"]
[ECO "B22"]
[WhiteElo "2661"]
[BlackElo "2595"]
[Annotator "TA"]
[PlyCount "108"]
[EventDate "2022.05.21"]
[EventType "swiss"]
[EventCountry "UAE"]
[SourceTitle "playchess.com"]
[Source "ChessBase"]
[SourceQuality "1"]
[TimeControl "5400+30"]

{[%evp 19,108,0,16,0,0,0,0,0,0,0,0,0,25,16,22,14,38,29,21,0,-10,0,0,5,18,8,8,8,8,9,9,0,23,8,29,0,12,12,13,12,6,0,0,0,0,0,0,0,0,0,0,0,0,0,0,0,0,0,0,0,0,0,0,-8,0,0,0,0,0,0,0,0,0,0,0,0,0,0,0,0,0,0,0,0,0,0,0,0,0,0,0]} 1. e4 {[%emt 0:00:10]} c5 {[%emt 0:00:22]} 2. Nf3 {[%emt 0:00:13]} e6 {[%emt 0:00:29]} 3. c3 {[%emt 0:01:14]} Nf6 {[%emt 0:00:50]} 4. e5 {[%emt 0:00:55]} Nd5 {[%emt 0:00:14]} 5. d4 {[%emt 0:00:29]} cxd4 {[%emt 0:00:45]} 6. cxd4 {[%emt 0:00:08]} d6 {[%emt 0:01:12]} 7. Bc4 {[%emt 0:01:31]} Be7 {[%emt 0:03:19]} 8. O-O {[%emt 0:00:10]} O-O {[%emt 0:00:45]} 9. Qe2 {[%emt 0:00:18]} Nc6 {[%emt 0:07:30]} 10. Qe4 {[%emt 0:07:06]} Bd7 {[%emt 0:07:06]} 11. Bd3 {[%emt 0:00:09][%csl Gd3][%cal Re4h7] [#] B22: Sicilian: 2 c3.} f5 {[%emt 0:02:14]} (11... g6 {feels hotter.} 12. Bh6 Re8 13. Nbd2 f5) 12. exf6 {[%emt 0:00:10]} Nxf6 {[%emt 0:00:07]} 13. Qe2 {[%emt 0:00:14]} Nb4 {[%emt 0:14:26]} 14. Bc4 {[%emt 0:02:30]} d5 {[%emt 0:07:12]} 15. Bb3 {[%emt 0:00:11] [#]} Nc6 $146 {[%emt 0:05:14]} ({Predecessor:} 15... Rc8 16. Nc3 Nc6 17. Re1 Bd6 18. h3 a6 19. Bc2 Kh8 20. Qd1 Qc7 21. a3 e5 {½-½ (32) Raivio,P (2380)-Leal,P (2387) ICCF email 2015}) 16. Nc3 {[%emt 0:01:00]} a6 {[%emt 0:02:30]} 17. Bg5 {[%emt 0:06:34]} Qe8 {[%emt 0:02:32]} 18. Rad1 {[%emt 0:10:14]} Kh8 {[%emt 0:11:08]} 19. Ne5 {[%emt 0:11:30]} Nxe5 {[%emt 0:02:15]} 20. dxe5 {[%emt 0:00:01]} Ng8 {[%emt 0:01:30]} 21. Bxe7 {[%emt 0:00:03]} Nxe7 {[%emt 0:00:34]} 22. Bc2 {[%emt 0:00:24]} Bb5 {[%emt 0:03:58]} 23. Nxb5 {[%emt 0:03:21]} Qxb5 {[%emt 0:00:39]} 24. Bd3 {[%emt 0:02:12]} ({But not} 24. Qh5 g6 25. Qg4 Qb6 $11) 24... Qb6 {[%emt 0:00:29]} 25. g3 {[%emt 0:00:12]} Rf7 {[%emt 0:01:48]} 26. Kg2 {[%emt 0:00:24]} Raf8 {[%emt 0:00:26]} 27. h4 {[%emt 0:09:22]} g6 {[%emt 0:00:04] The position is equal.} 28. Bb1 {[%emt 0:05:10]} Nf5 {[%emt 0:02:58]} (28... Kg7 {looks sharper.} 29. Rd3 Nf5 30. Rb3 Qc7) 29. Rd3 {[%emt 0:01:21]} Qb5 {[%emt 0:02:16]} 30. f4 {[%emt 0:12:20]} Rc7 {[%emt 0:04:35]} 31. Kh3 {[%emt 0:02:04]} h5 {[%emt 0:01:00]} 32. Qf2 {[%emt 0:01:10]} Qc5 {[%emt 0:02:29]} 33. Qd2 {[%emt 0:02:14]} Rfc8 {[%emt 0:00:57]} 34. Rc3 {[%emt 0:01:03]} Qe7 {[%emt 0:00:57]} 35. Rfc1 {[%emt 0:01:08]} Kh7 {[%emt 0:00:38]} 36. Kg2 {[%emt 0:04:56]} Kh6 {[%emt 0:00:38]} 37. Rxc7 {[%emt 0:00:43]} Rxc7 {[%emt 0:00:02]} 38. Bd3 {[%emt 0:00:54]} Rc5 {[%emt 0:05:37]} 39. Rc3 {[%emt 0:02:39]} Qc7 {[%emt 0:01:02]} 40. Qc1 {[%emt 0:03:23]} Rxc3 {[%emt 0:00:42]} 41. Qxc3 $11 {[%emt 0:00:03][%mdl 4096] Endgame KQB-KQN} Qd7 {[%emt 0:01:21]} 42. Qc5 {[%emt 0:00:21]} Kg7 {[%emt 0:00:02]} 43. b3 {[%emt 0:00:29]} Kf7 {[%emt 0:00:30]} 44. Kf3 {[%emt 0:00:52]} Ne7 {[%emt 0:00:46]} 45. g4 {[%emt 0:02:42]} ({Much weaker is} 45. Qd6 Qxd6 46. exd6 Nf5 $17) 45... hxg4+ {[%emt 0:00:19]} 46. Kxg4 {[%emt 0:00:02]} Qd8 {[%emt 0:00:10]} 47. Kf3 {[%emt 0:03:04]} Qh8 {[%emt 0:01:10]} 48. Kg3 {[%emt 0:00:43]} Qh5 {[%emt 0:02:58] And now ...Nf5+ would win.} 49. Qc7 {[%emt 0:00:33]} Qd1 {[%emt 0:01:01]} 50. Bxg6+ {[%emt 0:00:06]} Kxg6 {[%emt 0:00:12]} 51. Qxe7 {[%emt 0:00:03]} Qd3+ {[%emt 0:00:27]} 52. Kf2 {[%emt 0:00:24]} Qd2+ {[%emt 0:00:17]} 53. Kf3 {[%emt 0:00:07]} Qd3+ {[%emt 0:00:11]} 54. Kf2 {[%emt 0:00:12]} Qd2+ {[%emt 0:00:08] An interesting draw.  Weighted Error Value: White=0.02 (flawless) /Black=0.03 (flawless)} 1/2-1/2